Cogmind - Beta 17 @@@ ROGUE MODE // 2026.06.30 @ 18:05:30 Player: Lolterzard Result: Destroyed by DH-I78(R) with Subdweller Laser Performance ------------- Evolutions (0) 0 Regions Visited (3) 600 Robots Destroyed (35) 175 Value Destroyed (558) 558 Prototype IDs (0) 0 Alien Tech Used (0) 0 Bonus (0) 0 TOTAL SCORE: 1333 Bonus ------- None Cogmind --------- Core Integrity 0/250 Matter 146/300 Energy 124/125 System Corruption 0% Temperature Cool (6) Movement Core (750) Ox14 Location -10/Subcaves Parts ------- > --- POWER (1) -------- Light Ion Engine > --- PROPULSION (2) --- (None) > --- UTILITY (2) ------ High-capacity Storage Unit > --- WEAPON (2) ------- Light Assault Rifle > --- INVENTORY (20) --- Subdweller Power Source Light Treads Light Treads Large Storage Unit High-capacity Matter Pod (95) Hardened Light Armor Plating Hardened Light Armor Plating Hardened Light Armor Plating Hardened Light Armor Plating Tractor Beam EM Pulse Gun Riot Gun Subdweller Machine Gun Grenade Launcher Grenade Launcher Scrap Shield Fragment (48) Peak State ------------ > --- POWER ------------ Ion Engine > --- PROPULSION ------- Light Treads Light Treads > --- UTILITY ---------- High-capacity Storage Unit Seismic Detector > --- WEAPON ----------- Light Assault Rifle Light Assault Rifle > --- INVENTORY -------- Light Ion Engine Light Treads Light Treads Large Storage Unit High-capacity Matter Pod Hardened Light Armor Plating Hardened Light Armor Plating Hardened Light Armor Plating Hardened Light Armor Plating Tractor Beam EM Pulse Gun Riot Gun Grenade Launcher Grenade Launcher Grenade Launcher Grenade Launcher [Rating: 9] Favorites ----------- Power Ion Engine Engine Ion Engine Propulsion Light Treads Treads Light Treads Utility Seismic Detector Device Seismic Detector Storage High-capacity Storage Unit Weapon Light Assault Rifle Energy Gun Medium Laser Ballistic Gun Light Assault Rifle Launcher Grenade Launcher Build | -11 -10 -10 -10 ------- Run | Yrd Mat Min Sub Slots Evolved . | . . . . Power . | . . . . Propulsion . | . . . . Utility . | . . . . Weapon . | . . . . Parts Attached 20 | 7 10 1 2 Power 3 | 1 1 . 1 Engine 3 | 1 1 . 1 Core . | . . . . Reactor . | . . . . Propulsion 5 | 2 3 . . Treads 5 | 2 3 . . Leg . | . . . . Wheel . | . . . . Hover . | . . . . Flight . | . . . . Utility 5 | 2 2 1 . Device 2 | 1 . 1 . Storage 3 | 1 2 . . Processor . | . . . . Hackware . | . . . . Protection . | . . . . Artifact . | . . . . Weapon 7 | 2 4 . 1 Energy Gun 2 | 2 . . . Energy Cannon . | . . . . Ballistic Gun 2 | . 2 . . Ballistic Cannon . | . . . . Launcher 3 | . 2 . 1 Special Weapon . | . . . . Impact Weapon . | . . . . Slashing Weapon . | . . . . Piercing Weapon . | . . . . Special Melee Weapon . | . . . . Unidentified Prototypes . | . . . . Parts Lost 10 | . 2 1 7 Power 2 | . 1 . 1 Propulsion 2 | . . . 2 Utility 2 | . . 1 1 Weapon 4 | . 1 . 3 Highest Loss Streak 4 | . 1 1 4 To Critical Strikes 1 | . . . 1 Average Backups 10 | 1 7 14 16 Power 1 | . 1 1 1 Propulsion 1 | . . 2 2 Utility 3 | . 1 6 7 Weapon 4 | . 3 5 6 Tool/Special . | . . . . Unused Backups 7 | . . . 7 Power 1 | . . . 1 Propulsion . | . . . . Utility 2 | . . . 2 Weapon 4 | . . . 4 Tool/Special . | . . . . Average Slot Usage (%) 94 | . 98 100 85 Engine 13 | . 13 14 13 Treads 24 | . 27 28 19 Device 12 | . 14 14 9 Storage 14 | . 14 14 14 Energy Gun 4 | . 7 . . Ballistic Gun 18 | . 19 28 15 Launcher 4 | . . . 11 Peak Build Rating 9 | 7 8 8 9 Average Rating 7 | 5 7 7 7 On Entrance 5 | . 7 8 8 Avg Prop Armor Cover (%) 20 | 27 15 . . Naked Turns . | . . . . Heaviest Build 50 | 13 48 48 50 Greatest Support 40 | 40 40 40 40 Greatest Overweight (x) 15 | 3 4 1 15 Average Overweight (x) . | . . 1 2 Largest Inventory Capacity 20 | 8 20 20 20 Average Capacity 14 | 7 11 20 20 Most Carried 19 | 2 15 15 19 Average Carried 10 | 1 7 14 17 Final Capacity 20 | 8 20 20 20 Final Carried 16 | 2 15 15 16 Class Distribution -------------------- 63% | Mutant 36% | Scavenger-Mutant Dominant Class ---------------- Scavenger-Mutant | -10/Materials Mutant | -10/Mines Mutant | -10/Subcaves Resources | -11 -10 -10 -10 ----------- Run | Yrd Mat Min Sub Matter Collected 725 | 270 186 121 148 Remotely . | . . . . Salvage Created 829 | 143 489 44 153 Parts 63 | 7 39 4 13 Haulers Intercepted 2 | . 2 . . Recyclers Shooed 4 | 2 2 . . Parts Field Recycled . | . . . . Retrieved Matter . | . . . . Parts Self-Destructed 12 | . . . 12 Prevented . | . . . . Parts Restored . | . . . . Kills | -11 -10 -10 -10 ------- Run | Yrd Mat Min Sub Combat Hostiles Destroyed 23 | . 12 3 8 Guns 8 | . 5 3 . AOE 15 | . 7 . 8 Classes Destroyed 9 | 2 6 . 1 Worker 2 | . 2 . . Builder 1 | . 1 . . Tunneler 2 | 2 . . . Hauler 2 | . 2 . . Recycler 3 | 1 2 . . Watcher 2 | . 2 . . Swarmer 15 | . 9 3 3 Grunt 5 | . 3 . 2 Subdweller 3 | . . . 3 Best Kill Streak 6 | 2 6 2 3 Combat Bots Only 3 | . 3 2 3 Max Kills in Single Turn 2 | 1 2 1 1 Gunslinging . | . . . . Exploded 2 | . 2 . 1 Melee . | . . . . Uniques/NPCs Destroyed . | . . . . Combat | -11 -10 -10 -10 -------- Run | Yrd Mat Min Sub Hostile Shots Fired 176 | . 69 35 72 Missed 48 | . 18 9 21 Hits 128 | . 51 26 51 Projectile 128 | . 51 26 51 Critical Strikes 5 | . 1 . 4 Damage Taken 1394 | . 504 208 682 Core 261 | . 66 44 151 Absorbed by Shields . | . . . . Regen/Repaired (Parts) 72 | . 72 . . Core Remaining (%) 100 | 100 . . . Volleys Fired 112 | 8 67 17 20 Largest 2 | 2 2 2 2 Hottest 90 | 90 90 40 50 Shots Fired 220 | 16 132 34 38 Gun 198 | 16 128 34 20 Cannon . | . . . . Launcher 22 | . 4 . 18 Special . | . . . . Kinetic 136 | . 82 34 20 Thermal 32 | 8 24 . . Explosive 22 | . 4 . 18 Electromagnetic 30 | 8 22 . . Robot Hit Streak 9 | 2 9 4 5 Robot Miss Streak 5 | 3 5 5 3 Penetration Max . | . . . . Secondary Targets 2 | . . 2 . Max Gunslinging Chain 1 | . . 1 . Shots Hit Robots 119 | 7 69 20 23 Core Hits 53 | 3 32 4 14 Critical Kills . | . . . . Critical Parts Destroyed 2 | . 2 . . Critical Strikes 4 | . 4 . . Burn 2 | . 2 . . Destroy 2 | . 2 . . Melee Attacks . | . . . . Impact . | . . . . Slashing . | . . . . Piercing . | . . . . Sneak Attacks . | . . . . Combat Hostiles . | . . . . Follow-up Attacks . | . . . . Damage Inflicted 2241 | 94 1135 161 851 Guns 954 | 94 624 161 75 Cannons . | . . . . Explosions 1279 | . 503 . 776 Melee . | . . . . Ramming 8 | . 8 . . Kinetic 598 | . 362 161 75 Thermal 325 | 12 313 . . Explosive 1091 | . 315 . 776 Electromagnetic 219 | 82 137 . . Impact . | . . . . Slashing . | . . . . Piercing . | . . . . Highest Corruption . | . . . . Average Corruption . | . . . . Corruption Purged . | . . . . Corruption Blocked . | . . . . Overload Shots . | . . . . Overflow Damage 64 | . 29 . 35 Projectiles . | . . . . Explosions 64 | . 29 . 35 Melee . | . . . . Knockbacks 1 | . 1 . . Impact 1 | . 1 . . Kinetic . | . . . . Secondary . | . . . . Self-Inflicted Damage 65 | . 31 . 34 Shots 3 | . 1 . 2 Rammed 2 | . 2 . . Targets Rammed 3 | . 3 . . Kicked . | . . . . Crushed 1 | . 1 . . Highest Temperature 150 | 90 150 . . Average Temperature 47 | 43 48 . . Received Heat Transfer 291 | . 162 . 129 Siege Activations . | . . . . Martial Activations . | . . . . Shielding Activations . | . . . . Robots Disrupted . | . . . . Combat Hostiles . | . . . . Robots Corrupted . | . . . . Combat Hostiles . | . . . . Parts Fried 2 | . 2 . . Impact Corruptions . | . . . . Robots Melted . | . . . . Combat Hostiles . | . . . . Parts Melted 3 | . 3 . . Heat Transferred 705 | 37 668 . . Parts Sabotaged . | . . . . Parts Stolen . | . . . . Parts Stripped . | . . . . Power Chain Reactions 1 | . 1 . . Alert | -11 -10 -10 -10 ------- Run | Yrd Mat Min Sub Maximum Alert Level 1 | . 1 . . Low Security (%) 87 | 100 84 100 . Level 1 12 | . 15 . . Level 2 . | . . . . Level 3 . | . . . . Level 4 . | . . . . Level 5 . | . . . . High Security . | . . . . Max Security . | . . . . Peak Influence 236 | 10 236 88 . Initial 48 | . . 48 . Average 95 | . 112 61 . Influence Increases 803 | 15 488 70 230 Destroy 0b10 Robot/C 400 | . 240 60 100 Destroy 0b10 Robot/NC 60 | 15 45 . . Destroy Leader 78 | . 58 10 10 Successful Hack 5 | . 5 . . Disable Machine 45 | . 45 . . Destroy Structure 50 | . 50 . . Partial Spotted 15 | . 15 . . Lose Combat Pursuer 150 | . 30 . 120 Influence Decreases 795 | 15 362 168 250 Entered New Map 94 | . . 78 16 Time Decay 601 | 15 342 80 164 Lost Part 100 | . 20 10 70 Squads Dispatched 2 | . 2 . . Investigation 2 | . 2 . . Extermination . | . . . . Reinforcement . | . . . . Assault . | . . . . Garrison . | . . . . Intercept . | . . . . Searches Triggered . | . . . . Construction Impeded . | . . . . Haulers Reinforced . | . . . . Active Scanning Responses . | . . . . Cargo Convoy Interrupts . | . . . . Stealth | -11 -10 -10 -10 --------- Run | Yrd Mat Min Sub Distress Signals 1 | . 1 . . Communications Jammed . | . . . . Distress Signals . | . . . . Times Spotted 41 | . 25 3 13 Peak Tracking Total 6 | . 3 3 6 Tactical Retreats 4 | . 2 . 2 Traps | -11 -10 -10 -10 ------- Run | Yrd Mat Min Sub Traps Triggered 2 | . 2 . . Indirectly . | . . . . Trap Hack Attempts . | . . . . Triggered . | . . . . Disarmed . | . . . . Reprogrammed . | . . . . Reused . | . . . . Traps Extracted . | . . . . Installed . | . . . . Triggered . | . . . . Machines | -11 -10 -10 -10 ---------- Run | Yrd Mat Min Sub Machines Disabled 5 | . 3 . 2 Max in Single Turn 3 | . 3 . 2 Machines Repaired . | . . . . Machines Dismantled . | . . . . Machines Sabotaged . | . . . . Overloaded Fab Kills . | . . . . Hacking | -11 -10 -10 -10 --------- Run | Yrd Mat Min Sub Machines Accessed 8 | . 7 . 1 Terminals 5 | . 5 . . Fabricators . | . . . . Repair Stations 1 | . 1 . . Recycling Units 1 | . 1 . . Scanalyzers . | . . . . Garrison Access . | . . . . Total Hacks 19 | . 14 . 5 Successful 10 | . 5 . 5 Failed 9 | . 9 . . Catastrophic 5 | . 5 . . Database Lockouts . | . . . . Manual 2 | . 2 . . Terminals 10 | . 10 . . Fabricators . | . . . . Repair Stations 2 | . 2 . . Recycling Units 2 | . 2 . . Scanalyzers . | . . . . Garrison Access . | . . . . Terminal Hacks 7 | . 2 . 5 Record 5 | . . . 5 Alert Level 1 | . 1 . . Zone Layout 1 | . 1 . . Fabricator Hacks . | . . . . Repair Station Hacks 2 | . 2 . . Scan Component 1 | . 1 . . Repair 1 | . 1 . . Recycling Unit Hacks 1 | . 1 . . Retrieve Components 1 | . 1 . . Scanalyzer . | . . . . Garrison Access Hacks . | . . . . Unauthorized Hacks . | . . . . Terminals . | . . . . Fabricators . | . . . . Repair Stations . | . . . . Recycling Units . | . . . . Scanalyzers . | . . . . Garrison Access . | . . . . Data Cores Recovered . | . . . . Used . | . . . . Hacking Detections 4 | . 4 . . Full Trace Events 2 | . 2 . . Feedback Events . | . . . . Feedback Blocked . | . . . . Robot Schematics Acquired . | . . . . Robots Built . | . . . . Authchips . | . . . . Time . | . . . . Total Robot Build Rating . | . . . . Part Schematics Acquired . | . . . . Parts Built . | . . . . Authchips . | . . . . Time . | . . . . Total Part Build Rating . | . . . . Part Studies Acquired . | . . . . Parts Repaired 1 | . 1 . . Time 26 | . 26 . . Parts Recycled . | . . . . Recycled Matter . | . . . . Retrieved Matter . | . . . . Retrieved Components 3 | . 3 . . Parts Scanalyzed . | . . . . Part Schematics Acquired . | . . . . Parts Damaged . | . . . . Bothacking | -11 -10 -10 -10 ------------ Run | Yrd Mat Min Sub Used RIF Installer . | . . . . Robots Hacked . | . . . . Non-combat . | . . . . Combat . | . . . . Robot Hacks Applied . | . . . . Relay Couplers Released . | . . . . Fabnet Peak Effective % . | . . . . Robots Rewired . | . . . . Allies Hacked . | . . . . Hacks Repelled . | . . . . Allies | -11 -10 -10 -10 -------- Run | Yrd Mat Min Sub Total Allies . | . . . . Largest Group . | . . . . Highest-Rated Group . | . . . . Highest-Rated Ally . | . . . . Total Orders . | . . . . Ally Attacks . | . . . . Total Damage . | . . . . Kills . | . . . . Allies Corrupted . | . . . . Allies Melted . | . . . . Intel | -11 -10 -10 -10 ------- Run | Yrd Mat Min Sub Active Infowar (turns) 1783 | . 1099 150 534 Seismic 1783 | . 1099 150 534 Robot Analysis Total . | . . . . Derelict Logs Recovered 1 | . . 1 . Drone Launches . | . . . . Drone Recoveries . | . . . . Exploration | -11 -10 -10 -10 ------------- Run | Yrd Mat Min Sub Turns Passed 2307 | 145 1211 169 782 Spaces Moved 906 | 77 547 52 230 Core 80 | 32 19 . 29 Treads 826 | 45 528 52 201 Legs . | . . . . Wheels . | . . . . Hover . | . . . . Flight . | . . . . Fastest Speed 50 | 50 160 240 240 Average Speed 209 | 142 172 240 311 Slowest Speed 800 | 200 250 240 800 Overloaded Moves . | . . . . Propulsion Burnouts . | . . . . Robots Hopped . | . . . . Potential Cave-ins . | . . . . Cave-ins Triggered . | . . . . Exploration Rate (%) 32 | 4 86 12 26 Regions Visited 3 Branch Regions 2 Pre-discovered Areas 1 | . . . 1 Known Exits Taken . | . . . . Unknown Exits Taken 3 | 1 1 1 . Scrap Searched 2 | . . 1 1 Spaces Dug . | . . . . Terrain Destroyed 144 | . 60 . 84 Melee . | . . . . Projectile . | . . . . AOE 144 | . 60 . 84 Terrain Rammed . | . . . . Walls Destroyed . | . . . . Machines Disabled . | . . . . Actions | -11 -10 -10 -10 --------- Run | Yrd Mat Min Sub Total 1117 | 93 692 70 262 Wait 51 | . 47 . 4 Move 903 | 76 546 51 230 Hop . | . . . . Pick Up 17 | 2 10 1 4 Fast Attach 14 | 7 7 . . Attach 4 | . . 1 3 Detach . | . . . . Swap 10 | . 9 . 1 Drop 3 | . 3 . . Fire 112 | 8 67 17 20 Melee . | . . . . Ram . | . . . . Kick . | . . . . Crush 3 | . 3 . . Escape Stasis . | . . . . Rewire . | . . . . Trap . | . . . . Miscellaneous . | . . . . Route ------- -11/Scrapyard -10/Materials (discovered 5 exits: [*Mat x3] / [*Min x2]) -10/Mines -10/Subcaves History --------- Turn | Location | Event 37 | -11/Scrapyard | Discovered new exit (range 15) 146 | -11/Scrapyard | Entered Materials 204 | -10/Materials | Discovered new exit (range 6) 316 | -10/Materials | Build established: Mutant 467 | -10/Materials | Discovered new exit (range 5) 682 | -10/Materials | Discovered new exit (range 14) 718 | -10/Materials | Discovered new exit (range 13) 842 | -10/Materials | Build established: Scavenger-Mutant 1030 | -10/Materials | Repaired Lgt. Assault Rifle 1288 | -10/Materials | Discovered new exit (range 9) 1357 | -10/Materials | Entered Mines 1383 | -10/Mines | Met a Derelict bent on vengeance 1434 | -10/Mines | Learned Materials emergency access door positions 1502 | -10/Mines | Discovered new exit (range 10) 1526 | -10/Mines | Entered Subcaves 1527 | -10/Subcaves | Shifting Twisted Machinery released Riot Gun 1527 | -10/Subcaves | Approached by a straggling Scientist 1611 | -10/Subcaves | Core integrity fell below 50% 1679 | -10/Subcaves | Build established: Mutant 1766 | -10/Subcaves | Ambushed by Subdweller buried in earth 1948 | -10/Subcaves | Visited Clippyterm 1955 | -10/Subcaves | Learned location of Section 7 (-3) 1955 | -10/Subcaves | Learned Factory emergency access door positions 2059 | -10/Subcaves | Core integrity fell below 20% 2091 | -10/Subcaves | Lost 4 parts (2n1u1w) 2308 | -10/Subcaves | Destroyed by DH-I78(R) with Subdweller Laser Last Messages --------------- 02050_ Lgt. Treads destroyed. 02052_ Subatomizers dissect the Lgt. Ion Engine. 02058_ Lgt. Assault Rifle fries itself beyond repair. 02060_ S-10 Pest destroyed. 02060_ Seismic Detector destroyed. 02060_ Destroyed Seismic Detector. 02060_ Lgt. Treads destroyed. 02060_ Destroyed Lgt. Treads. 02062_ Lgt. Ion Engine fries itself beyond repair. 02063_ S-10 Pest destroyed. 02074_ Machine disabled. 02074_ Destroyed Flight Unit. 02074_ S-10 Pest destroyed. 02074_ Machine disabled. 02075_ Lgt. Assault Rifle fries itself beyond repair. 02077_ Lgt. Ion Engine fries itself beyond repair. 02079_ The unstable cave ceiling collapses. 02295_ Critical hit (Destroy). 02295_ Grenade Launcher destroyed. 02304_ Lgt. Assault Rifle destroyed. Map ----- +----------------------------------------------------+ | ???????????????????# ## ### #????? | | ?????????????????### ## #????? | | ?????????????????# # #????? | | ?????????????????## # # ## ##????? | | ?????????????????# ### ?## ##?????? | | ???????????????### ## ???# #??????? | | ???????????????# % ???# ##??????? | | ???????????????## # ???# ##???????? | | ????????????????# ????# ###????????? | | ???????????????? ????# ##??????????? | | ????????????????# "???## #####???????????? | | ???????????????? # "#?## ##??????????????? | | ???????????????? ## "#?# ##?????????????? | | ???????????????? #?" """#?# #?????????????? | | ??????????????? #??######## ## ###????????? | | ??????????????? #????## #????????? | | ??????????????? ????# ##????????? | | ??????????????? ????## #?????????? | | ?????????????? ????## #???????? | | ?????????????? ????# ## #??????? | | ???????????????? ????# # #??????? | | ???????????????? ????# ### ##??????? | | ????????????????????????## #??# ### #???????? | | ??????????????##?????????# #??? #?? #??????? | | ??????????????# #### #???# ?? #?????? | | ????????????????# @ #???? ? ??????? | | ?????????????????# #???? !?? ??????? | | ?????????????????## R#####???? ##?????????? | | ??????????????????## ?????????? ###??????????? | | ???????????????????# ??????????##????????????? | | ?????????????????? ????????????????????????? | | ????????????????? ?????????????????????????? | | ????????????????# # ?????????????????????????? | | ????????????????# ###?????????????????????????? | | ???????????????? ????????????????????????????? | | ??????????????? ?????????????????????????????? | | ?????????????? ?????????????????????????????? | | ???????????????? ??????????????????????????????? | | ?????????????????????????????????????????????????? | | ?????????????????????????????????????????????????? | | ?????????????????????????????????????????????????? | | ?????????????????????????????????????????????????? | | ?????????????????????????????????????????????????? | | ?????????????????????????????????????????????????? | | ?????????????????????????????????????????????????? | | ?????????????????????????????????????????????????? | | ?????????????????????????????????????????????????? | | ?????????????????????????????????????????????????? | | ?????????????????????????????????????????????????? | | ?????????????????????????????????????????????????? | +----------------------------------------------------+ Best States ------------- Heat Dissipation 25 Energy Generation 10 Energy Capacity 250 Matter Stores 300 Matter Capacity 300 Sight Range 16 Terrain Scan Density 10 Evasion (%) 50 Recoil Reduction 2 Item Schematics ----------------- None Robot Schematics ------------------ None Fabricated ------------ Nothing Repaired ---------- Lgt. Assault Rifle | 10% | -10/Materials Studied --------- None Alien Tech Used ----------------- None Achievements -------------- None Challenges ------------ None Game ------ Seed MicrowarpCannonActivator Manual? 0 Play Time 00:11:10 Cumulative 64.2 hours Start 2026.06.30 @ 17:56:44 End 2026.06.30 @ 18:05:30 Sessions 1 Manual Loads 0 Difficulty Rogue Special Mode None Game No. 136 Rogue 136 Adventurer 0 Explorer 0 Win Type - Total 0 Types 0/0/0/0/0/0/0/0/0/0 Lore% 31 Gallery% 29 Achievement% 25 Wizard Run 0 Options --------- Layout 0 ASCII 0 Keyboard 0 Movement Mouse Keybinds 0 Fullscreen 2 Font 24/Smallcaps Map View 76x50 Zoom Use 0% Tactical HUD 1 Map Filters NONE Filters NONE Steam 1 RUN: 97c7ef3f-dd3c-4601-b0ba-5e4883433e65